fUST/lending_fUST_20251125
["ID","MTS","AMOUNT","RATE_DAILY","PERIOD"]
[394830155,1764004242392,-500.0,0.00013698,2]
[394830156,1764004242402,-500.0,0.00013698,2]
[394830157,1764004242411,-500.0,0.00013698,2]
[394830158,1764004242420,-544.83119937,0.00013698,2]
[394830159,1764004242429,-500.0,0.00013698,2]
[394830160,1764004242439,-537.71,0.00013698,2]
[394830161,1764004242448,-500.0,0.00013698,2]
[394830162,1764004242458,-500.0,0.00013698,2]
[394830163,1764004242468,-521.62208953,0.00013698,2]
[394830164,1764004242478,-401.40018367,0.00013698,2]
[394830165,1764004242487,-500.0,0.00013698,2]
[394830166,1764004242495,-500.0,0.00013698,2]
[394830167,1764004242504,-500.0,0.00013698,2]
[394830168,1764004242518,-500.0,0.00013698,2]
[394830169,1764004242527,-500.0,0.00013698,2]
[394830170,1764004242536,-500.0,0.00013698,2]
[394830171,1764004242545,-572.11,0.00013698,2]
[394830172,1764004242555,-500.0,0.00013698,2]
[394830173,1764004242564,-500.0,0.00013698,2]
[394830174,1764004242573,-501.60954995,0.00013698,2]
[394830175,1764004242584,-500.0,0.00013698,2]
[394830176,1764004242593,-523.06527049,0.00013698,2]
[394830177,1764004242602,-500.0,0.00013698,2]
[394830178,1764004242611,-500.0,0.00013698,2]
[394830179,1764004242620,-500.0,0.00013698,2]
[394830180,1764004242629,-509.74877199,0.00013698,2]
[394830181,1764004242638,-500.0,0.00013698,2]
[394830182,1764004242647,-500.0,0.00013698,2]
[394830183,1764004242656,-500.0,0.00013698,2]
[394830184,1764004242665,-500.0,0.00013698,2]
[394830185,1764004242674,-500.0,0.00013698,2]
[394830186,1764004242683,-500.0,0.00013698,2]
[394830187,1764004242693,-500.0,0.00013698,2]
[394830188,1764004242702,-500.0,0.00013698,2]
[394830189,1764004242710,-518.98114011,0.00013698,2]
[394830190,1764004242719,-500.0,0.00013698,2]
[394830191,1764004242729,-500.0,0.00013698,2]
[394830192,1764004242738,-500.0,0.00013698,2]
[394830193,1764004242747,-500.0,0.00013698,2]
[394830194,1764004242756,-500.0,0.00013698,2]
[394830195,1764004242765,-500.0,0.00013698,2]
[394830196,1764004242773,-182.910314,0.00013698,2]
[394830199,1764004242782,-500.0,0.00013698,2]
[394830201,1764004242791,-500.0,0.00013698,2]
[394830203,1764004242800,-500.0,0.00013698,2]
[394830205,1764004242809,-518.97356996,0.00013698,2]
[394830207,1764004242818,-500.0,0.00013698,2]
[394830209,1764004242827,-500.0,0.00013698,2]
[394830210,1764004242836,-500.0,0.00013698,2]
[394830212,1764004242845,-479.01890763,0.00013698,2]
[394830214,1764004242854,-535.10096744,0.00013698,2]
[394830216,1764004242863,-523.81957145,0.00013698,2]
[394830218,1764004242872,-500.0,0.00013698,2]
[394830220,1764004242882,-500.0,0.00013698,2]
[394830222,1764004242891,-500.0,0.00013698,2]
[394830223,1764004242900,-500.0,0.00013698,2]
[394830224,1764004242909,-500.0,0.00013698,2]
[394830225,1764004242919,-500.0,0.00013698,2]
[394830226,1764004242928,-500.0,0.00013698,2]
[394830227,1764004242937,-601.07,0.00013698,2]
[394830228,1764004242946,-500.0,0.00013698,2]
[394830229,1764004242956,-500.0,0.00013698,2]
[394830230,1764004242965,-500.0,0.00013698,2]
[394830231,1764004242975,-500.0,0.00013698,2]
[394830232,1764004242985,-500.0,0.00013698,2]
[394830233,1764004242994,-500.0,0.00013698,2]
[394830234,1764004243004,-500.0,0.00013698,2]
[394830235,1764004243014,-508.67364526,0.00013698,2]
[394830236,1764004243023,-500.0,0.00013698,2]
[394830237,1764004243036,-525.93689135,0.00013698,2]
[394830238,1764004243046,-450.57353567,0.00013698,2]
[394830239,1764004243056,-595.37,0.00013698,2]
[394830240,1764004243065,-500.0,0.00013698,2]
[394830241,1764004243075,-500.0,0.00013698,2]
[394830242,1764004243085,-500.0,0.00013698,2]
[394830243,1764004243095,-500.0,0.00013698,2]
[394830244,1764004243104,-537.92572537,0.00013698,2]
[394830245,1764004243115,-500.0,0.00013698,2]
[394830246,1764004243124,-500.0,0.00013698,2]
[394830247,1764004243135,-500.0,0.00013698,2]
[394830248,1764004243144,-500.0,0.00013698,2]
[394830249,1764004243154,-369.91301517,0.00013698,2]
[394830250,1764004243164,-3534.89,0.00013698,2]
[394830251,1764004243173,-1000.0,0.00013698,2]
[394830252,1764004243183,-500.0,0.00013698,2]
[394830253,1764004243316,-500.0,0.00013698,2]
[394830254,1764004243347,-500.0,0.00013698,2]
[394830255,1764004243357,-644.97,0.00013698,2]
[394830256,1764004243367,-1189.83,0.00013698,2]
[394830257,1764004243376,-500.0,0.00013698,2]
[394830258,1764004243387,-508.95286641,0.00013698,2]
[394830259,1764004243397,-500.0,0.00013698,2]
[394830260,1764004243406,-500.0,0.00013698,2]
[394830261,1764004243416,-500.0,0.00013698,2]
[394830262,1764004243425,-500.0,0.00013698,2]
[394830263,1764004243435,-541.24049921,0.00013698,2]
[394830264,1764004243445,-743.5,0.00013698,2]
[394830265,1764004243454,-500.0,0.00013698,2]
[394830266,1764004243464,-500.0,0.00013698,2]
[394830267,1764004243474,-500.0,0.00013698,2]
[394830268,1764004243483,-509.153357,0.00013698,2]
[394830269,1764004243493,-500.0,0.00013698,2]
[394830270,1764004243502,-490.88846842,0.00013698,2]
[394830272,1764004243516,-520.846381,0.00013698,2]
[394830273,1764004243526,-507.69204822,0.00013698,2]
[394830274,1764004243535,-500.0,0.00013698,2]
[394830275,1764004243545,-500.0,0.00013698,2]
[394830276,1764004243555,-500.0,0.00013698,2]
[394830277,1764004243564,-500.0,0.00013698,2]
[394830278,1764004243574,-500.0,0.00013698,2]
[394830279,1764004243584,-500.0,0.00013698,2]
[394830280,1764004243594,-500.0,0.00013698,2]
[394830281,1764004243603,-512.15,0.00013698,2]
[394830282,1764004243613,-500.0,0.00013698,2]
[394830284,1764004243622,-500.0,0.00013698,2]
[394830286,1764004243632,-500.0,0.00013698,2]
[394830288,1764004243641,-505.89,0.00013698,2]
[394830290,1764004243651,-500.0,0.00013698,2]
[394830291,1764004243660,-640.3762774,0.00013698,2]
[394830293,1764004243670,-660.17,0.00013698,2]
[394830294,1764004243680,-506.20661908,0.00013698,2]
[394830296,1764004243689,-500.0,0.00013698,2]
[394830298,1764004243699,-500.0,0.00013698,2]
[394830300,1764004243708,-500.0,0.00013698,2]
[394830302,1764004243717,-500.0,0.00013698,2]
[394830304,1764004243727,-500.0,0.00013698,2]
[394830305,1764004243736,-622.32901867,0.00013698,2]
[394830307,1764004243745,-500.0,0.00013698,2]
[394830310,1764004243755,-508.38841244,0.00013698,2]
[394830311,1764004243764,-500.0,0.00013698,2]
[394830314,1764004243774,-500.0,0.00013698,2]
[394830315,1764004243783,-517.2629702,0.00013698,2]
[394830317,1764004243793,-2027.3,0.00013698,2]
[394830319,1764004243802,-500.0,0.00013698,2]
[394830321,1764004243811,-1253.21,0.00013698,2]
[394830323,1764004243821,-535.55524416,0.00013698,2]
[394830325,1764004243830,-504.02,0.00013698,2]
[394830327,1764004243840,-500.0,0.00013698,2]
[394830329,1764004243853,-500.0,0.00013698,2]
[394830332,1764004243862,-500.0,0.00013698,2]
[394830334,1764004243872,-548.26816648,0.00013698,2]
[394830335,1764004243883,-510.56276159,0.00013698,2]
[394830338,1764004243893,-500.0,0.00013698,2]
[394830340,1764004243903,-500.0,0.00013698,2]
[394830342,1764004243913,-501.50708769,0.00013698,2]
[394830344,1764004243922,-500.0,0.00013698,2]
[394830345,1764004243931,-500.0,0.00013698,2]
[394830347,1764004243940,-1710.36,0.00013698,2]
[394830349,1764004243950,-1042.42,0.00013698,2]
[394830351,1764004243960,-499.42795449,0.00013698,2]
[394830353,1764004243969,-518.14865202,0.00013698,2]
[394830355,1764004243979,-524.78436282,0.00013698,2]
[394830357,1764004243991,-500.0,0.00013698,2]
[394830359,1764004244001,-500.0,0.00013698,2]
[394830361,1764004244010,-517.9118402,0.00013698,2]
[394830362,1764004244020,-500.0,0.00013698,2]
[394830365,1764004244031,-517.32331019,0.00013698,2]
[394830367,1764004244040,-1683.13,0.00013698,2]
[394830369,1764004244050,-500.0,0.00013698,2]
[394830371,1764004244060,-500.0,0.00013698,2]
[394830373,1764004244069,-500.0,0.00013698,2]
[394830374,1764004244079,-500.0,0.00013698,2]
[394830376,1764004244088,-500.0,0.00013698,2]
[394830378,1764004244098,-528.33,0.00013698,2]
[394830380,1764004244107,-321.77482138,0.00013698,2]
[394830382,1764004244117,-512.30165037,0.00013698,2]
[394830384,1764004244127,-2234.06,0.00013698,2]
[394830386,1764004244137,-556.98502393,0.00013698,2]
[394830389,1764004244148,-182.47089878,0.00013698,2]
[394830391,1764004244158,-500.0,0.00013698,2]
[394830393,1764004244167,-500.0,0.00013698,2]
[394830394,1764004244177,-626.38,0.00013698,2]
[394830397,1764004244187,-500.0,0.00013698,2]
[394830398,1764004244197,-500.0,0.00013698,2]
[394830400,1764004244207,-514.61320441,0.00013698,2]
[394830402,1764004244217,-500.0,0.00013698,2]
[394830404,1764004244227,-557.50458247,0.00013698,2]
[394830406,1764004244236,-210.92524367,0.00013698,2]
[394830408,1764004244246,-500.0,0.00013698,2]
[394830410,1764004244256,-500.0,0.00013698,2]
[394830412,1764004244265,-500.0,0.00013698,2]
[394830414,1764004244275,-507.69792772,0.00013698,2]
[394830417,1764004244285,-505.60437677,0.00013698,2]
[394830419,1764004244294,-1416.3,0.00013698,2]
[394830420,1764004244304,-500.0,0.00013698,2]
[394830422,1764004244313,-500.0,0.00013698,2]
[394830424,1764004244323,-1000.0,0.00013698,2]
[394830426,1764004244332,-500.0,0.00013698,2]
[394830428,1764004244342,-500.0,0.00013698,2]
[394830430,1764004244352,-500.0,0.00013698,2]
[394830432,1764004244361,-4894.75,0.00013698,2]
[394830434,1764004244371,-516.60438896,0.00013698,2]
[394830436,1764004244380,-500.0,0.00013698,2]
[394830438,1764004244389,-916.92,0.00013698,2]
[394830440,1764004244399,-500.0,0.00013698,2]
[394830442,1764004244408,-500.0,0.00013698,2]
[394830443,1764004244417,-516.48424067,0.00013698,2]
[394830445,1764004244427,-1404.21,0.00013698,2]
[394830447,1764004244436,-500.0,0.00013698,2]
[394830449,1764004244445,-500.0,0.00013698,2]
[394830451,1764004244454,-500.0,0.00013698,2]
[394830453,1764004244464,-500.0,0.00013698,2]
[394830455,1764004244473,-500.0,0.00013698,2]
[394830457,1764004244483,-999.35,0.00013698,2]
[394830459,1764004244492,-1570.8,0.00013698,2]
[394830461,1764004244502,-500.0,0.00013698,2]
[394830463,1764004244515,-500.0,0.00013698,2]
[394830465,1764004244524,-500.0,0.00013698,2]
[394830467,1764004244533,-500.0,0.00013698,2]
[394830469,1764004244543,-395.01741367,0.00013698,2]
[394830470,1764004244553,-500.0,0.00013698,2]
[394830472,1764004244563,-503.20180639,0.00013698,2]
[394830474,1764004244573,-581.96,0.00013698,2]
[394830476,1764004244584,-500.0,0.00013698,2]
[394830478,1764004244594,-500.0,0.00013698,2]
[394830480,1764004244603,-500.0,0.00013698,2]
[394830482,1764004244612,-500.0,0.00013698,2]
[394830484,1764004244622,-500.0,0.00013698,2]
[394830486,1764004244633,-523.85,0.00013698,2]
[394830488,1764004244643,-500.0,0.00013698,2]
[394830490,1764004244653,-512.19833821,0.00013698,2]
[394830492,1764004244662,-187.38854246,0.00013698,2]
[394830494,1764004244671,-538.59399675,0.00013698,2]
[394830496,1764004244681,-320.51963671,0.00013698,2]
[394830498,1764004244690,-500.0,0.00013698,2]
[394830500,1764004244699,-537.9554711,0.00013698,2]
[394830502,1764004244709,-500.0,0.00013698,2]
[394830504,1764004244719,-274.27987566,0.00013698,2]
[394830506,1764004244729,-500.0,0.00013698,2]
[394830508,1764004244738,-520.4682529,0.00013698,2]
[394830510,1764004244747,-500.0,0.00013698,2]
[394830511,1764004244756,-500.0,0.00013698,2]
[394830513,1764004244765,-500.0,0.00013698,2]
[394830515,1764004244774,-500.0,0.00013698,2]
[394830517,1764004244783,-500.0,0.00013698,2]
[394830519,1764004244792,-500.0,0.00013698,2]
[394830521,1764004244802,-500.0,0.00013698,2]
[394830523,1764004244812,-582.39087476,0.00013698,2]
[394830525,1764004244821,-500.0,0.00013698,2]
[394830527,1764004244830,-7546.05,0.00013698,2]
[394830529,1764004244839,-515.72,0.00013698,2]
[394830531,1764004244849,-500.0,0.00013698,2]
[394830533,1764004244858,-3077.97,0.00013698,2]
[394830534,1764004244867,-500.0,0.00013698,2]
[394830536,1764004244877,-500.0,0.00013698,2]
[394830538,1764004244886,-500.0,0.00013698,2]
[394830540,1764004244896,-526.36019192,0.00013698,2]
[394830542,1764004244906,-529.09,0.00013698,2]
[394830544,1764004244916,-500.0,0.00013698,2]
[394830546,1764004244925,-500.0,0.00013698,2]
[394830548,1764004244935,-815.41,0.00013698,2]
[394830550,1764004244943,-420.5849096,0.00013698,2]
[394830552,1764004244953,-500.0,0.00013698,2]
[394830554,1764004244963,-500.0,0.00013698,2]
[394830555,1764004244973,-500.0,0.00013698,2]
[394830557,1764004244982,-500.0,0.00013698,2]
[394830559,1764004244991,-500.0,0.00013698,2]
[394830561,1764004245001,-500.0,0.00013698,2]
[394830563,1764004245011,-500.0,0.00013698,2]
[394830565,1764004245020,-500.0,0.00013698,2]
[394830567,1764004245030,-562.32,0.00013698,2]
[394830569,1764004245039,-500.0,0.00013698,2]
[394830571,1764004245049,-500.0,0.00013698,2]
[394830573,1764004245058,-689.3,0.00013698,2]
[394830575,1764004245067,-500.0,0.00013698,2]
[394830578,1764004245080,-500.0,0.00013698,2]
[394830580,1764004245089,-500.0,0.00013698,2]
[394830582,1764004245099,-500.0,0.00013698,2]
[394830584,1764004245108,-1902.17,0.00013698,2]
[394830586,1764004245118,-500.0,0.00013698,2]
[394830587,1764004245128,-857.6,0.00013698,2]
[394830589,1764004245139,-541.95105408,0.00013698,2]
[394830591,1764004245149,-1235.57,0.00013698,2]
[394830593,1764004245159,-500.0,0.00013698,2]
[394830595,1764004245169,-581.84861365,0.00013698,2]
[394830597,1764004245178,-430.32787765,0.00013698,2]
[394830599,1764004245187,-500.0,0.00013698,2]
[394830601,1764004245196,-500.0,0.00013698,2]
[394830603,1764004245205,-500.0,0.00013698,2]
[394830605,1764004245216,-500.0,0.00013698,2]
[394830607,1764004245224,-500.0,0.00013698,2]
[394830609,1764004245234,-536.39,0.00013698,2]
[394830610,1764004245243,-500.0,0.00013698,2]
[394830612,1764004245252,-500.0,0.00013698,2]
[394830614,1764004245262,-500.0,0.00013698,2]
[394830616,1764004245271,-152.57712967,0.00013698,2]
[394830618,1764004245281,-500.0,0.00013698,2]
[394830620,1764004245290,-500.0,0.00013698,2]
[394830622,1764004245300,-500.0,0.00013698,2]
[394830624,1764004245310,-509.04284933,0.00013698,2]
[394830626,1764004245319,-500.0,0.00013698,2]
[394830628,1764004245328,-500.0,0.00013698,2]
[394830630,1764004245338,-519.00009132,0.00013698,2]
[394830632,1764004245347,-500.0,0.00013698,2]
[394830634,1764004245357,-500.0,0.00013698,2]
[394830636,1764004245366,-706.55,0.00013698,2]
[394830638,1764004245376,-500.0,0.00013698,2]
[394830640,1764004245386,-515.15335046,0.00013698,2]
[394830642,1764004245395,-520.37853003,0.00013698,2]
[394830644,1764004245404,-525.23436954,0.00013698,2]
[394830646,1764004245413,-500.0,0.00013698,2]
[394830648,1764004245422,-500.0,0.00013698,2]
[394830650,1764004245431,-500.0,0.00013698,2]
[394830652,1764004245441,-546.01541781,0.00013698,2]
[394830654,1764004245451,-500.0,0.00013698,2]
[394830656,1764004245460,-500.0,0.00013698,2]
[394830657,1764004245469,-535.29461946,0.00013698,2]
[394830659,1764004245478,-500.0,0.00013698,2]
[394830661,1764004245488,-500.0,0.00013698,2]
[394830662,1764004245497,-500.0,0.00013698,2]
[394830663,1764004245508,-181.934779,0.00013698,2]
[394830664,1764004245521,-387.16132399,0.00013698,2]
[394830665,1764004245530,-500.0,0.00013698,2]
[394830666,1764004245539,-500.0,0.00013698,2]
[394830667,1764004245550,-500.0,0.00013698,2]
[394830668,1764004245560,-500.0,0.00013698,2]
[394830669,1764004245570,-151.0,0.00013698,2]
[394830670,1764004245579,-151.0,0.00013698,2]
[394830671,1764004245589,-151.0,0.00013698,2]
[394830672,1764004245598,-151.0,0.00013698,2]
[394830673,1764004245607,-151.0,0.00013698,2]
[394830674,1764004245616,-512.45603675,0.00013698,2]
[394830675,1764004245626,-177.504617,0.00013698,2]
[394830676,1764004245636,-550.75728894,0.00013698,2]
[394830678,1764004245645,-500.0,0.00013698,2]
[394830680,1764004245654,-520.62693416,0.00013698,2]
[394830682,1764004245663,-500.0,0.00013698,2]
[394830683,1764004245673,-592.59230265,0.00013698,2]
[394830685,1764004245682,-500.0,0.00013698,2]
[394830687,1764004245691,-500.0,0.00013698,2]
[394830689,1764004245700,-500.0,0.00013698,2]
[394830691,1764004245709,-500.0,0.00013698,2]
[394830697,1764004245762,-500.0,0.00013698,2]
[394830699,1764004245771,-500.0,0.00013698,2]
[394830701,1764004245780,-520.21,0.00013698,2]
[394830703,1764004245789,-500.0,0.00013698,2]
[394830705,1764004245798,-500.0,0.00013698,2]
[394830707,1764004245807,-500.0,0.00013698,2]
[394830709,1764004245816,-530.35979967,0.00013698,2]
[394830711,1764004245825,-500.0,0.00013698,2]
[394830713,1764004245835,-500.0,0.00013698,2]
[394830714,1764004245844,-464.92675283,0.00013698,2]
[394830716,1764004245854,-500.0,0.00013698,2]
[394830718,1764004245863,-500.0,0.00013698,2]
[394830720,1764004245872,-500.0,0.00013698,2]
[394830723,1764004245882,-1509.79,0.00013698,2]
[394830724,1764004245894,-500.0,0.00013698,2]
[394830727,1764004245905,-500.0,0.00013698,2]
[394830728,1764004245914,-395.11280731,0.00013698,2]
[394830730,1764004245924,-846.58,0.00013698,2]
[394830732,1764004245934,-583.74,0.00013698,2]
[394830734,1764004245944,-500.0,0.00013698,2]
[394830736,1764004245954,-500.0,0.00013698,2]
[394830738,1764004245964,-500.0,0.00013698,2]
[394830740,1764004245973,-500.0,0.00013698,2]
[394830742,1764004245982,-1318.05,0.00013698,2]
[394830744,1764004245991,-500.0,0.00013698,2]
[394830746,1764004246001,-500.0,0.00013698,2]
[394830748,1764004246010,-500.0,0.00013698,2]
[394830750,1764004246019,-500.0,0.00013698,2]
[394830752,1764004246028,-520.61781301,0.00013698,2]
[394830754,1764004246037,-500.0,0.00013698,2]
[394830756,1764004246046,-500.0,0.00013698,2]
[394830758,1764004246055,-647.17,0.00013698,2]
[394830760,1764004246064,-500.0,0.00013698,2]
[394830762,1764004246073,-534.74437303,0.00013698,2]
[394830764,1764004246084,-639.94,0.00013698,2]
[394830766,1764004246093,-500.0,0.00013698,2]
[394830768,1764004246102,-500.0,0.00013698,2]
[394830770,1764004246111,-500.0,0.00013698,2]
[394830771,1764004246120,-500.0,0.00013698,2]
[394830773,1764004246129,-532.44991292,0.00013698,2]
[394830775,1764004246141,-464.83035402,0.00013698,2]
[394830777,1764004246150,-500.0,0.00013698,2]
[394830779,1764004246160,-288.37838148,0.00013698,2]
[394830781,1764004246169,-638.37,0.00013698,2]
[394830783,1764004246179,-500.0,0.00013698,2]
[394830785,1764004246188,-500.0,0.00013698,2]
[394830787,1764004246197,-1000.0,0.00013698,2]
[394830789,1764004246206,-1000.0,0.00013698,2]
[394830791,1764004246216,-1000.0,0.00013698,2]
[394830793,1764004246226,-500.0,0.00013698,2]
[394830795,1764004246239,-500.0,0.00013698,2]
[394830797,1764004246248,-1000.0,0.00013698,2]
[394830799,1764004246258,-1000.0,0.00013698,2]
[394830801,1764004246267,-1000.0,0.00013698,2]
[394830803,1764004246276,-1000.0,0.00013698,2]
[394830805,1764004246285,-1000.0,0.00013698,2]
[394830807,1764004246294,-1000.0,0.00013698,2]
[394830809,1764004246303,-809.84126538,0.00013698,2]
[394830811,1764004246312,-1835.81,0.00013698,2]
[394830813,1764004246322,-500.0,0.00013698,2]
[394830815,1764004246331,-500.0,0.00013698,2]
[394830817,1764004246340,-531.93430831,0.00013698,2]
[394830819,1764004246350,-500.0,0.00013698,2]
[394830821,1764004246359,-500.0,0.00013698,2]
[394830823,1764004246368,-151.0,0.00013698,2]
[394830825,1764004246377,-151.0,0.00013698,2]
[394830827,1764004246388,-151.0,0.00013698,2]
[394830829,1764004246398,-500.0,0.00013698,2]
[394830831,1764004246407,-151.0,0.00013698,2]
[394830833,1764004246417,-500.0,0.00013698,2]
[394830835,1764004246426,-151.0,0.00013698,2]
[394830837,1764004246435,-500.0,0.00013698,2]
[394830839,1764004246444,-569.19816636,0.00013698,2]
[394830841,1764004246453,-507.09282676,0.00013698,2]
[394830843,1764004246462,-491.89240758,0.00013698,2]
[394830845,1764004246471,-500.0,0.00013698,2]
[394830847,1764004246480,-334.29504037,0.00013698,2]
[394830849,1764004246489,-500.0,0.00013698,2]
[394830850,1764004246498,-500.0,0.00013698,2]
[394830853,1764004246511,-727.82,0.00013698,2]
[394830855,1764004246522,-500.0,0.00013698,2]
[394830857,1764004246531,-500.0,0.00013698,2]
[394830859,1764004246540,-512.32622159,0.00013698,2]
[394830860,1764004246550,-625.13572262,0.00013698,2]
[394830862,1764004246560,-500.0,0.00013698,2]
[394830864,1764004246569,-553.30436604,0.00013698,2]
[394830866,1764004246578,-500.0,0.00013698,2]
[394830868,1764004246588,-500.0,0.00013698,2]
[394830870,1764004246598,-1085.97,0.00013698,2]
[394830872,1764004246607,-151.0,0.00013698,2]
[394830874,1764004246616,-174.800804,0.00013698,2]
[394830876,1764004246625,-516.81194996,0.00013698,2]
[394830879,1764004246638,-500.0,0.00013698,2]
[394830881,1764004246647,-393.03058257,0.00013698,2]
[394830883,1764004246656,-500.0,0.00013698,2]
[394830885,1764004246666,-500.0,0.00013698,2]
[394830886,1764004246675,-500.0,0.00013698,2]
[394830889,1764004246684,-1162.56,0.00013698,2]
[394830890,1764004246693,-500.0,0.00013698,2]
[394830892,1764004246703,-284.45615363,0.00013698,2]
[394830920,1764004247482,-215.54384637,0.00013698,2]
[394830921,1764004247493,-532.28707236,0.00013698,2]
[394830922,1764004247503,-528.66234338,0.00013698,2]
[394830923,1764004247516,-500.0,0.00013698,2]
[394830924,1764004247526,-500.0,0.00013698,2]
[394830925,1764004247537,-500.0,0.00013698,2]
[394830926,1764004247548,-505.66366081,0.00013698,2]
[394830927,1764004247559,-546.91421121,0.00013698,2]
[394830928,1764004247569,-500.0,0.00013698,2]
[394830929,1764004247580,-752.49,0.00013698,2]
[394830930,1764004247591,-500.0,0.00013698,2]
[394830931,1764004247600,-1457.17,0.00013698,2]
[394830932,1764004247610,-500.0,0.00013698,2]
[394830933,1764004247619,-500.0,0.00013698,2]
[394830934,1764004247629,-299.612203,0.00013698,2]
[394830935,1764004247641,-1362.27,0.00013698,2]
[394830936,1764004247651,-500.0,0.00013698,2]
[394830937,1764004247661,-523.73262231,0.00013698,2]
[394830938,1764004247670,-217.39726237,0.00013698,2]
[394830939,1764004247680,-509.13948479,0.00013698,2]
[394830940,1764004247690,-536.89291966,0.00013698,2]
[394830941,1764004247699,-500.0,0.00013698,2]
[394830942,1764004247709,-151.0,0.00013698,2]
[394830943,1764004247719,-151.0,0.00013698,2]
[394830944,1764004247728,-151.0,0.00013698,2]
[394830945,1764004247738,-500.0,0.00013698,2]
[394830946,1764004247747,-170.022743,0.00013698,2]
[394830947,1764004247757,-1559.98,0.00013698,2]
[394830948,1764004247767,-519.32,0.00013698,2]
[394830949,1764004247777,-326.44311678,0.00013698,2]
[394830950,1764004247787,-504.89582772,0.00013698,2]
[394830951,1764004247797,-540.95129028,0.00013698,2]
[394830952,1764004247807,-500.0,0.00013698,2]
[394830953,1764004247816,-500.0,0.00013698,2]
[394830954,1764004247826,-500.0,0.00013698,2]
[394830955,1764004247836,-200.05607358,0.00013698,2]
[394830956,1764004247846,-219.08485704,0.00013698,2]
[394830957,1764004247855,-500.0,0.00013698,2]
[394830958,1764004247864,-442.85009899,0.00013698,2]
[394830959,1764004247876,-500.0,0.00013698,2]
[394830960,1764004247886,-500.0,0.00013698,2]
[394830961,1764004247896,-500.0910965,0.00013698,2]
[394830962,1764004247906,-500.0,0.00013698,2]
[394830963,1764004247915,-500.0,0.00013698,2]
[394830964,1764004247925,-500.0,0.00013698,2]
[394830965,1764004247935,-500.0,0.00013698,2]
[394830966,1764004247944,-500.0,0.00013698,2]
[394830967,1764004247954,-643.87980454,0.00013698,2]
[394830968,1764004247964,-500.0,0.00013698,2]
[394830969,1764004247974,-500.0,0.00013698,2]
[394830970,1764004247984,-500.0,0.00013698,2]
[394830971,1764004247994,-500.0,0.00013698,2]
[394830972,1764004248004,-500.0,0.00013698,2]
[394830973,1764004248013,-500.0,0.00013698,2]
[394830974,1764004248025,-500.0,0.00013698,2]
[394830975,1764004248035,-573.2,0.00013698,2]
[394830976,1764004248044,-500.0,0.00013698,2]
[394830977,1764004248054,-500.0,0.00013698,2]
[394830978,1764004248064,-614.57974258,0.00013698,2]
[394830979,1764004248075,-642.5837589,0.00013698,2]
[394830980,1764004248084,-526.25738118,0.00013698,2]
[394830981,1764004248095,-1336.37,0.00013698,2]
[394830982,1764004248106,-500.0,0.00013698,2]
[394830983,1764004248116,-1077.2,0.00013698,2]
[394830984,1764004248126,-500.0,0.00013698,2]
[394830985,1764004248135,-500.0,0.00013698,2]
[394830986,1764004248145,-500.0,0.00013698,2]
[394830987,1764004248154,-500.0,0.00013698,2]